bitfinex/quotes_SOLUSD_20240703
["timestamp","ask_amount","ask_price","bid_price","bid_amount"]
[1719973151245,11.66,152.07,152.05,6.9167]
[1719973151421,11.66,152.06,152.05,6.9167]
[1719973152539,11.66,152.1,152.08,6.5754]
[1719973154140,11.66,152.1,152.07,6.7458]
[1719973158047,11.66,152.13,152.1,6.5745]
[1719973158353,15.7197,152.17,152.11,0.34]
[1719973158558,11.66,152.14,152.09,12.0]
[1719973158850,11.66,152.14,152.12,6.5734]
[1719973159056,11.66,152.14,152.09,12.0]
[1719973159823,11.66,152.14,152.09,0.34]
[1719973160023,11.66,152.14,152.09,11.66]
[1719973160325,15.7197,152.17,152.1,12.0]
[1719973160326,11.66,152.15,152.1,12.0]
[1719973160742,11.66,152.14,152.1,0.34]
[1719973162038,11.66,152.15,152.1,0.34]
[1719973162235,11.66,152.15,152.1,12.0]
[1719973162451,11.66,152.16,152.11,11.66]
[1719973162629,11.66,152.16,152.12,0.34]
[1719973164239,11.66,152.15,152.12,0.34]
[1719973164440,11.66,152.15,152.11,0.34]
[1719973164643,6.5716,152.17,152.11,0.34]
[1719973164644,11.66,152.14,152.11,0.34]
[1719973164850,11.66,152.14,152.12,0.17]
[1719973165054,11.66,152.14,152.1,0.34]
[1719973165548,11.66,152.14,152.09,18.1004]
[1719973165549,11.66,152.12,152.07,15.0661]
[1719973166635,11.66,152.11,152.07,15.0661]
[1719973167556,11.66,152.11,152.09,6.5747]
[1719973168437,11.66,152.11,152.1,6.5746]
[1719973168935,11.66,152.11,152.09,6.5749]
[1719973169945,11.66,152.11,152.08,0.34]
[1719973170540,11.66,152.12,152.08,0.34]
[1719973171561,11.66,152.11,152.08,0.34]
[1719973172732,66.39,152.16,152.08,0.34]
[1719973172939,11.66,152.11,152.08,0.34]
[1719973174449,11.66,152.13,152.08,12.0]
[1719973175262,11.66,152.13,152.08,0.34]
[1719973175562,11.66,152.12,152.08,0.34]
[1719973177363,6.5721,152.16,152.08,12.0]
[1719973177550,11.66,152.14,152.09,11.66]
[1719973177749,11.66,152.14,152.08,0.34]
[1719973177750,11.66,152.14,152.1,0.34]
[1719973177953,11.66,152.15,152.1,12.0]
[1719973179972,11.66,152.17,152.12,11.66]
[1719973180263,11.66,152.17,152.13,0.34]
[1719973180450,11.66,152.18,152.13,12.0]
[1719973180840,11.66,152.17,152.13,0.34]
[1719973181062,11.66,152.16,152.12,0.34]
[1719973182552,11.66,152.14,152.12,0.34]
[1719973183371,11.66,152.13,152.12,0.17]
[1719973183754,11.66,152.13,152.07,21.5525]
[1719973183966,11.66,152.1,152.07,15.0661]
[1719973184264,11.66,152.11,152.07,15.0661]
[1719973184766,11.66,152.12,152.07,26.7261]
[1719973185270,11.66,152.12,152.08,0.34]
[1719973186156,6.5716,152.17,152.09,11.66]
[1719973186366,11.66,152.14,152.1,0.34]
[1719973186671,11.66,152.13,152.1,0.34]
[1719973186856,11.66,152.13,152.11,0.17]
[1719973187055,11.66,152.13,152.09,0.34]
[1719973187571,6.5727,152.15,152.09,0.34]
[1719973187871,6.5727,152.15,152.07,15.0661]
[1719973187872,11.66,152.1,152.07,15.0661]
[1719973188073,11.66,152.09,152.07,15.0661]
[1719973188664,11.66,152.09,152.03,18.1464]
[1719973188665,11.66,152.09,152.04,11.66]
[1719973189175,11.66,152.09,152.05,0.34]
[1719973190361,11.66,152.08,152.05,0.17]
[1719973190563,11.66,152.08,152.04,0.17]
[1719973190962,11.66,152.07,152.04,0.17]
[1719973191470,11.66,152.08,152.04,0.17]
[1719973191780,36.3463,152.15,152.04,12.0]
[1719973191781,6.5734,152.13,152.04,12.0]
[1719973191958,11.66,152.1,152.04,12.0]
[1719973192156,11.66,152.09,152.04,0.34]
[1719973192391,19.75,152.1,151.99,22.7787]
[1719973192555,6.5748,152.1,151.99,22.7787]
[1719973192878,11.66,152.07,152.02,11.66]
[1719973193086,11.66,152.09,152.04,11.66]
[1719973193757,16.5963,152.15,152.04,11.66]
[1719973194063,11.66,152.1,152.05,28.3068]
[1719973194263,11.66,152.11,152.06,11.66]
[1719973194575,11.66,152.11,152.07,6.9158]
[1719973194784,11.66,152.1,152.07,6.9158]
[1719973194986,11.66,152.12,152.07,12.0]
[1719973195277,11.66,152.11,152.07,0.34]
[1719973196972,11.66,152.11,152.06,12.0]
[1719973197371,6.5739,152.12,152.06,0.34]
[1719973197372,11.66,152.1,152.06,0.34]
[1719973198474,11.66,152.11,152.06,0.34]
[1719973199075,11.66,152.11,152.06,12.0]
[1719973199281,11.66,152.1,152.06,0.34]
[1719973199974,11.66,152.08,152.06,0.34]
[1719973200477,11.66,152.09,152.06,0.34]
[1719973201393,11.66,152.09,152.07,6.5759]
[1719973201693,11.66,152.09,152.08,0.17]
[1719973201877,6.5738,152.12,152.08,0.17]
[1719973202082,11.66,152.09,152.08,0.17]
[1719973202386,11.66,152.11,152.08,0.34]
[1719973202586,11.66,152.11,152.07,0.17]
[1719973202791,6.5719,152.17,152.08,11.66]
[1719973203092,11.66,152.13,152.09,0.34]
[1719973203297,6.5719,152.17,152.12,6.5736]
[1719973203595,11.66,152.14,152.11,6.5741]
[1719973203884,11.66,152.14,152.12,6.9137]
[1719973204094,15.1619,152.19,152.12,0.34]
[1719973204396,11.66,152.14,152.12,0.34]
[1719973205178,34.9119,152.19,152.12,0.34]
[1719973205179,6.5715,152.18,152.12,0.34]
[1719973205375,11.66,152.17,152.13,0.17]
[1719973205578,11.66,152.17,152.13,0.34]
[1719973205774,11.66,152.16,152.13,0.34]
[1719973207370,6.5704,152.2,152.13,0.34]
[1719973207571,11.66,152.18,152.13,0.34]
[1719973208088,11.66,152.17,152.13,0.34]
[1719973208296,11.66,152.15,152.13,0.34]
[1719973208686,11.66,152.15,152.13,0.17]
[1719973208995,11.66,152.15,152.1,11.66]
[1719973209296,11.66,152.15,152.11,0.17]
[1719973209477,6.5712,152.18,152.11,0.17]
[1719973209797,11.66,152.16,152.11,0.17]
[1719973210179,11.66,152.16,152.11,0.34]
[1719973210885,6.5712,152.18,152.11,0.34]
[1719973211087,11.66,152.16,152.11,0.34]
[1719973211485,13.41527938,152.23,152.15,11.66]
[1719973211683,22.3959,152.24,152.16,0.34]
[1719973211684,75.6045,152.24,152.16,0.34]
[1719973211887,11.66,152.2,152.16,0.34]
[1719973212490,11.66,152.21,152.16,0.34]
[1719973212689,11.66,152.2,152.16,0.34]
[1719973213394,11.66,152.19,152.16,0.34]
[1719973213597,11.66,152.19,152.15,0.34]
[1719973215177,15.9998,152.24,152.15,0.34]
[1719973215385,11.66,152.22,152.17,11.66]
[1719973215583,11.66,152.22,152.18,0.34]
[1719973216691,19.54455197,152.28,152.18,12.0]
[1719973216891,11.66,152.23,152.18,12.0]
[1719973218002,11.66,152.24,152.19,11.66]
[1719973218188,23.1346,152.29,152.2,26.9774]
[1719973218392,11.66,152.26,152.21,11.83]
[1719973218609,11.66,152.26,152.22,0.17]
[1719973219291,11.66,152.3,152.22,0.17]
[1719973219496,6.5658,152.31,152.22,0.17]
[1719973219798,11.66,152.27,152.22,0.17]
[1719973220009,6.85023558,152.35,152.22,0.17]
[1719973220199,11.66,152.27,152.22,0.17]
[1719973220508,11.66,152.23,152.16,15.6494]
[1719973220828,11.66,152.24,152.16,15.6494]
[1719973220829,11.66,152.18,152.16,15.6494]
[1719973221128,11.66,152.17,152.16,15.6494]
[1719973221293,6.5694,152.22,152.16,15.6494]
[1719973221490,11.66,152.17,152.12,16.2769]
[1719973221689,11.66,152.14,152.12,16.2769]
[1719973222433,11.66,152.14,152.11,6.5242]
[1719973222710,11.66,152.12,152.08,15.806]
[1719973222896,46.64,152.16,152.08,15.806]
[1719973222897,11.66,152.13,152.08,27.466]
[1719973223099,6.5707,152.19,152.1,11.66]
[1719973223310,38.7363,152.24,152.08,27.466]
[1719973223540,6.5716,152.17,152.08,27.466]
[1719973223735,6.5716,152.17,152.08,15.806]
[1719973223923,29.8612,152.18,152.08,15.806]
[1719973224442,23.29,152.21,152.08,15.806]
[1719973224649,6.5711,152.19,152.08,15.806]
[1719973225122,6.5703,152.2,152.09,0.34]
[1719973225322,6.5707,152.19,152.09,0.34]
[1719973227944,29.86,152.21,152.09,20.34]
[1719973228161,6.5695,152.22,152.1,6.1665]
[1719973228449,45.6039,152.24,152.11,20.34]
[1719973228450,6.569,152.23,152.11,20.34]
[1719973229844,65.3539,152.24,152.11,20.34]
[1719973230725,6.5699,152.21,152.11,20.34]
[1719973230940,65.3539,152.24,152.11,20.34]
[1719973231137,6.5704,152.2,152.11,20.34]
[1719973231548,72.20781571,152.24,152.11,20.34]
[1719973231738,6.5699,152.21,152.11,20.34]
[1719973231926,6.5704,152.2,152.11,20.34]
[1719973232120,6.5704,152.2,152.11,0.34]
[1719973232325,6.5704,152.2,152.1,6.1665]
[1719973232326,6.5717,152.17,152.1,6.1665]
[1719973232524,6.5704,152.2,152.1,6.1665]
[1719973232819,6.5707,152.19,152.1,6.1665]
[1719973233029,6.5712,152.18,152.1,6.1665]
[1719973233454,23.29,152.21,152.1,6.1665]
[1719973233750,19.75,152.2,152.11,0.34]
[1719973233956,6.571,152.19,152.11,0.34]
[1719973234129,6.5712,152.18,152.11,0.34]
[1719973234446,6.5708,152.19,152.11,0.34]
[1719973234843,6.5703,152.2,152.11,0.34]
[1719973235049,6.5709,152.19,152.11,0.34]
[1719973235437,6.5703,152.2,152.11,0.34]
[1719973235634,29.8599,152.21,152.11,0.34]
[1719973236048,6.5712,152.18,152.11,0.34]
[1719973236346,6.5716,152.17,152.11,0.34]
[1719973236938,6.5712,152.18,152.11,0.34]
[1719973237253,6.5708,152.19,152.11,0.34]
[1719973239256,43.04,152.21,152.11,0.34]
[1719973239552,6.571,152.19,152.11,0.34]
[1719973240139,6.5703,152.2,152.11,0.34]
[1719973240968,6.57,152.21,152.12,15.5911]
[1719973241252,6.5703,152.2,152.13,0.34]
[1719973243441,6.5707,152.19,152.13,0.34]
[1719973245253,6.5715,152.18,152.13,0.34]
[1719973245536,6.5708,152.19,152.13,0.34]
[1719973247748,11.64,152.16,152.13,0.34]
[1719973248134,11.64,152.16,152.12,15.5911]
[1719973248338,11.64,152.13,152.1,6.1665]
[1719973249053,11.64,152.12,152.08,16.5087]
[1719973249265,26.58956916,152.2,152.08,28.1487]
[1719973249440,26.58956916,152.2,152.09,11.64]
[1719973249441,11.64,152.14,152.09,11.64]
[1719973249635,6.83956916,152.2,152.1,11.64]
[1719973249865,6.5714,152.18,152.09,6.2804]
[1719973250257,6.5717,152.17,152.1,0.34]
[1719973251650,6.5712,152.18,152.1,0.34]
[1719973251848,6.5716,152.17,152.1,0.34]
[1719973254166,23.28,152.18,152.1,0.34]
[1719973254553,29.8512,152.18,152.1,0.34]
[1719973255449,23.28,152.18,152.1,0.34]
[1719973257063,29.8511,152.18,152.1,0.34]
[1719973259978,23.28,152.18,152.1,0.34]
[1719973260351,6.5708,152.19,152.1,0.34]
[1719973260947,6.83901333,152.23,152.11,16.2113]
[1719973260948,26.60901333,152.23,152.11,16.2113]
[1719973261171,23.28,152.25,152.13,6.2406]
[1719973261471,23.28,152.25,152.15,16.2113]
[1719973261678,23.28,152.25,152.16,0.34]
[1719973261847,45.402,152.28,152.16,20.34]
[1719973262061,6.5672,152.27,152.17,6.2406]
[1719973262374,45.1831,152.32,152.19,16.2113]
[1719973262556,6.5664,152.29,152.2,0.17]
[1719973262871,45.1831,152.32,152.2,20.34]
[1719973262872,6.566,152.3,152.2,20.34]
[1719973263068,19.77,152.31,152.2,20.34]
[1719973263265,6.5667,152.29,152.2,20.34]
[1719973263647,6.566,152.3,152.2,20.34]
[1719973264853,19.77,152.31,152.2,20.34]
[1719973265051,6.5665,152.29,152.2,20.34]
[1719973265884,6.5671,152.28,152.2,20.0]
[1719973266067,19.77,152.25,152.19,16.2113]
[1719973266252,6.5686,152.24,152.19,16.2113]
[1719973266574,6.5688,152.24,152.19,16.2113]
[1719973266746,23.28,152.26,152.19,16.2113]
[1719973267182,29.8477,152.26,152.19,16.2113]
[1719973267853,43.05,152.26,152.19,16.2113]
[1719973268055,6.5702,152.21,152.15,16.3012]
[1719973268267,43.05,152.23,152.15,16.3012]
[1719973268268,6.5703,152.2,152.15,16.3012]
[1719973268854,6.5699,152.21,152.15,16.3012]
[1719973269055,6.5703,152.2,152.15,16.3012]
[1719973269249,6.571,152.19,152.15,16.3012]
[1719973269454,6.571,152.19,152.13,6.2478]
[1719973270660,43.05,152.2,152.11,16.2899]
[1719973270874,6.5712,152.18,152.11,16.2899]
[1719973271652,43.05,152.2,152.11,16.2899]
[1719973271653,6.5727,152.15,152.11,16.2899]
[1719973271853,23.28,152.17,152.11,16.2899]
[1719973272082,43.05,152.17,152.11,16.2899]
[1719973272586,6.572,152.16,152.11,16.2899]
[1719973272885,49.6216,152.17,152.11,16.2899]
[1719973273049,29.8516,152.17,152.11,16.2899]
[1719973273359,23.28,152.17,152.12,0.34]
[1719973273562,43.05,152.17,152.12,0.17]
[1719973273877,43.05,152.17,152.11,16.2899]
[1719973274076,43.05,152.2,152.11,16.2899]
[1719973274254,6.5707,152.19,152.12,0.34]
[1719973274460,6.5701,152.21,152.12,0.34]
[1719973274659,6.5703,152.2,152.12,0.34]
[1719973274865,6.5699,152.21,152.12,0.34]
[1719973275361,6.5695,152.22,152.12,0.34]
[1719973275574,6.5701,152.21,152.12,0.34]
[1719973275749,6.5704,152.2,152.12,0.34]
[1719973276084,6.5695,152.22,152.12,0.34]
[1719973276267,6.57,152.21,152.12,0.34]
[1719973276471,6.5703,152.2,152.12,0.34]
[1719973276666,6.5699,152.21,152.12,0.34]
[1719973277369,23.28,152.24,152.13,6.3521]
[1719973277567,23.28,152.24,152.14,0.34]
[1719973277568,6.5693,152.23,152.14,0.34]
[1719973277782,6.5694,152.22,152.14,0.34]
[1719973278677,59.4719,152.24,152.14,0.34]
[1719973278868,6.5706,152.2,152.14,0.34]
[1719973279698,43.05,152.21,152.13,6.3521]
[1719973279883,23.28,152.21,152.13,6.3521]
[1719973280051,6.5703,152.2,152.13,6.3521]
[1719973280258,39.7019,152.24,152.13,6.3521]
[1719973280259,23.28,152.24,152.13,6.3521]
[1719973280585,6.5697,152.22,152.13,6.3521]
[1719973281080,6.5697,152.22,152.14,0.34]
[1719973281255,6.5699,152.21,152.14,0.34]
[1719973281462,43.05,152.24,152.14,0.34]
[1719973282087,6.5701,152.21,152.14,0.34]
[1719973283458,6.5695,152.22,152.14,0.34]
[1719973284991,29.8489,152.24,152.14,0.34]
[1719973285282,29.8489,152.24,152.15,15.4053]
[1719973285489,29.8489,152.24,152.16,0.34]
[1719973285783,6.84971984,152.26,152.16,0.34]
[1719973285962,6.5685,152.25,152.16,0.34]
[1719973286363,6.5686,152.24,152.16,0.34]
[1719973286767,19.77,152.24,152.16,0.34]
[1719973286968,6.5707,152.19,152.15,15.4053]
[1719973287168,43.05,152.23,152.15,15.4053]
[1719973287390,29.8504,152.2,152.15,15.4053]
[1719973289383,43.05,152.2,152.13,6.3521]
[1719973289973,6.5724,152.15,152.11,16.1406]
[1719973290377,6.5721,152.16,152.11,16.1406]
[1719973291789,23.28,152.17,152.12,0.17]
[1719973291991,6.571,152.19,152.12,0.34]
[1719973292172,6.5711,152.18,152.12,0.34]
[1719973292370,6.5716,152.17,152.12,0.34]
[1719973292775,6.5712,152.18,152.12,0.34]
[1719973293089,29.8508,152.19,152.12,0.34]
[1719973293271,6.5711,152.18,152.12,0.34]
[1719973293471,6.5717,152.17,152.12,0.34]
[1719973293893,29.8511,152.19,152.12,0.34]
[1719973295486,43.05,152.23,152.12,0.34]
[1719973295688,6.5689,152.24,152.13,6.6621]
[1719973295992,23.28,152.25,152.14,0.34]
[1719973296165,6.5687,152.24,152.14,0.34]
[1719973296365,6.569,152.23,152.14,0.34]
[1719973296769,6.85165554,152.27,152.14,0.34]
[1719973296976,23.28,152.26,152.14,0.34]
[1719973297175,6.5682,152.25,152.15,16.0396]
[1719973297375,6.5682,152.25,152.16,0.34]
[1719973297984,6.5685,152.24,152.16,0.34]
[1719973298392,6.569,152.23,152.16,0.34]
[1719973299500,6.5686,152.24,152.16,0.34]
[1719973300093,43.05,152.26,152.16,0.34]
[1719973300094,6.5682,152.25,152.16,0.34]
[1719973300475,29.8478,152.26,152.16,0.34]
[1719973300676,43.05,152.26,152.16,0.34]
[1719973301083,6.5685,152.24,152.16,0.34]
[1719973301807,6.5682,152.25,152.16,0.34]
[1719973302103,43.05,152.26,152.17,6.4113]
[1719973302104,23.28,152.26,152.17,6.4113]
[1719973302281,23.28,152.26,152.18,0.34]
[1719973302601,29.8477,152.26,152.18,0.34]
[1719973303195,6.5681,152.25,152.18,0.34]
[1719973304185,29.8477,152.26,152.18,0.34]
[1719973305289,23.28,152.26,152.18,0.34]
[1719973305481,6.5673,152.27,152.19,15.7487]
[1719973305682,6.5673,152.27,152.2,0.34]
[1719973307994,6.5669,152.28,152.2,0.34]
[1719973308193,29.8465,152.29,152.2,0.34]
[1719973308599,6.5668,152.28,152.2,0.34]
[1719973310194,29.8464,152.29,152.2,0.34]
[1719973311201,6.5669,152.28,152.2,0.34]
[1719973311410,23.28,152.29,152.21,6.2806]
[1719973311590,23.28,152.29,152.22,0.34]
[1719973311788,6.566,152.3,152.22,0.34]
[1719973312986,6.5665,152.29,152.22,0.34]
[1719973313393,6.566,152.3,152.22,0.34]
[1719973314996,19.77,152.35,152.24,6.2958]
[1719973315206,23.28,152.36,152.25,0.34]
[1719973315413,23.28,152.36,152.26,16.4184]
[1719973315603,23.28,152.36,152.27,0.34]
[1719973316004,19.77,152.35,152.27,0.34]
[1719973316213,6.5651,152.32,152.27,0.34]
[1719973316509,6.5651,152.32,152.26,16.4184]
[1719973316510,6.5663,152.3,152.26,16.4184]
[1719973316701,19.77,152.32,152.26,16.4184]
[1719973316903,23.28,152.33,152.26,16.4184]
[1719973317111,6.5656,152.31,152.26,16.4184]
[1719973317292,23.28,152.33,152.24,6.2958]
[1719973317499,29.846,152.3,152.24,6.2958]
[1719973318207,23.28,152.27,152.23,15.5897]
[1719973318608,6.5666,152.29,152.23,15.5897]
[1719973319528,49.6164,152.29,152.23,15.5897]
[1719973319704,26.3364,152.29,152.23,15.5897]
[1719973320105,29.846,152.3,152.23,15.5897]
[1719973320404,23.28,152.3,152.23,15.5897]
[1719973320607,29.846,152.3,152.23,15.5897]
[1719973320813,29.846,152.3,152.24,0.34]
[1719973321606,23.28,152.3,152.24,0.34]
[1719973321817,6.5647,152.33,152.24,0.34]
[1719973322006,6.5651,152.32,152.24,0.34]
[1719973323899,6.5656,152.31,152.24,0.34]
[1719973324195,6.566,152.3,152.24,0.34]
[1719973325108,6.5656,152.31,152.24,0.34]
[1719973325808,43.05,152.34,152.24,0.34]
[1719973325809,6.5647,152.33,152.24,0.34]
[1719973326120,30.13120916,152.34,152.25,6.3016]
[1719973326329,23.28,152.34,152.26,0.34]
[1719973326625,6.5639,152.35,152.26,0.34]
[1719973328424,6.5642,152.34,152.26,0.34]
[1719973329616,23.28,152.37,152.26,0.34]
[1719973329822,29.8434,152.37,152.26,0.34]
[1719973330139,6.5638,152.35,152.26,20.34]
[1719973330437,6.85041444,152.38,152.29,15.7188]
[1719973330620,0.8273919,152.4,152.3,0.34]
[1719973330814,6.5624,152.39,152.3,0.34]
[1719973331408,6.5626,152.38,152.3,0.34]
[1719973331636,6.5622,152.39,152.3,0.34]
[1719973331931,6.5625,152.38,152.3,0.34]
[1719973334114,6.5631,152.37,152.3,0.34]
[1719973334435,6.5641,152.35,152.29,15.7188]
[1719973334618,29.8441,152.35,152.29,15.7188]
[1719973334931,23.28,152.35,152.29,15.7188]
[1719973335817,6.5647,152.33,152.29,15.7188]
[1719973336710,6.5647,152.33,152.28,6.262]
[1719973336711,6.5656,152.31,152.25,15.8921]
[1719973336921,6.5652,152.32,152.25,15.8921]
[1719973337249,6.5644,152.34,152.25,15.8921]
[1719973337416,6.5647,152.33,152.25,15.8921]
[1719973338219,6.5647,152.33,152.26,0.34]
[1719973338524,23.28,152.35,152.26,0.34]
[1719973338525,6.5643,152.34,152.26,0.34]
[1719973339221,6.5647,152.33,152.26,0.34]
[1719973339936,23.28,152.35,152.26,0.17]
[1719973340317,6.5643,152.34,152.26,0.17]
[1719973340819,6.5647,152.33,152.26,0.17]
[1719973341320,23.28,152.35,152.26,0.34]
[1719973341928,6.5645,152.34,152.26,0.34]
[1719973342439,29.8439,152.35,152.26,0.34]
[1719973342649,6.2874,152.34,152.26,0.34]
[1719973343550,6.2874,152.34,152.25,15.8921]
[1719973343551,6.5658,152.31,152.25,15.8921]
[1719973343932,29.8452,152.32,152.25,15.8921]
[1719973344118,43.05,152.32,152.25,15.8921]
[1719973344323,6.5665,152.29,152.25,15.8921]
[1719973344830,6.5648,152.33,152.25,15.8921]
[1719973345147,23.28,152.33,152.25,15.8921]
[1719973345356,6.85096705,152.37,152.25,15.8921]
[1719973345548,6.5634,152.36,152.25,15.8921]
[1719973346125,6.5634,152.36,152.26,0.34]
[1719973347852,6.85001174,152.38,152.28,16.0224]
[1719973348025,6.5625,152.39,152.29,20.34]
[1719973348356,24.1073919,152.4,152.29,20.34]
[1719973349164,0.8273919,152.4,152.3,22.496]
[1719973349327,0.8273919,152.4,152.32,16.4802]
[1719973349529,0.8273919,152.4,152.34,6.0158]
[1719973349727,0.8273919,152.4,152.36,16.4802]
[1719973349922,0.8273919,152.4,152.37,0.34]
[1719973350735,0.8273919,152.4,152.36,16.4802]
[1719973350933,7.3889919,152.4,152.36,16.4802]
[1719973351134,0.8273919,152.4,152.34,21.2745]
[1719973351437,7.3890919,152.4,152.34,21.2745]
[1719973351846,0.8273919,152.4,152.34,21.2745]
[1719973353334,0.8273919,152.4,152.35,0.34]
[1719973361661,0.8273919,152.4,152.35,20.34]
[1719973362057,0.8273919,152.4,152.35,0.34]
[1719973366755,0.8273919,152.4,152.34,21.2745]
[1719973368376,0.8273919,152.4,152.35,0.34]
[1719973368674,0.8273919,152.4,152.34,21.2745]
[1719973370250,0.8273919,152.4,152.35,0.34]
[1719973373773,11.61,152.39,152.35,0.34]
[1719973376559,11.61,152.38,152.35,0.34]
[1719973376758,11.61,152.36,152.3,22.0719]
[1719973376961,23.3032919,152.4,152.3,33.6819]
[1719973377189,11.61,152.35,152.3,33.6819]
[1719973378169,11.61,152.36,152.31,11.61]
[1719973378476,11.61,152.36,152.32,0.17]
[1719973381282,11.61,152.36,152.31,0.17]
[1719973381283,11.61,152.36,152.31,0.34]
[1719973381474,16.7415919,152.4,152.31,0.34]
[1719973381784,11.61,152.36,152.31,0.34]
[1719973384887,11.61,152.35,152.31,0.34]
[1719973385085,11.61,152.34,152.31,0.34]
[1719973385981,11.61,152.33,152.27,15.8681]
[1719973386193,12.9485,152.39,152.28,11.61]
[1719973386494,11.61,152.34,152.29,11.61]
[1719973387257,11.61,152.34,152.3,0.34]
[1719973387680,11.61,152.33,152.3,0.34]
[1719973387873,11.61,152.33,152.31,0.17]
[1719973388071,11.61,152.33,152.29,0.34]
[1719973390370,11.61,152.32,152.29,0.34]
[1719973390577,11.61,152.32,152.28,0.34]
[1719973391288,6.5626,152.38,152.28,0.34]
[1719973391492,11.61,152.33,152.28,0.34]
[1719973393590,11.61,152.32,152.28,0.34]
[1719973394779,19.77,152.37,152.28,0.34]
[1719973395075,11.61,152.3,152.27,0.34]
[1719973395281,11.61,152.3,152.28,0.34]
[1719973395491,11.61,152.3,152.26,0.34]
[1719973396093,11.61,152.29,152.26,0.34]
[1719973396296,11.61,152.28,152.22,6.5791]
[1719973396475,11.61,152.26,152.22,6.5791]
[1719973396873,52.5664,152.32,152.23,1.31355953]
[1719973397178,11.61,152.28,152.23,11.61]
[1719973397485,52.5664,152.32,152.23,11.61]
[1719973397680,11.61,152.28,152.23,11.61]
[1719973397996,21.9448,152.33,152.22,6.5791]
[1719973397997,15.3801,152.33,152.22,6.5791]
[1719973398181,11.61,152.31,152.26,11.61]
[1719973398383,11.61,152.31,152.27,0.34]
[1719973398594,15.3801,152.33,152.27,0.34]
[1719973398785,11.61,152.31,152.27,0.34]
[1719973398971,15.3801,152.33,152.27,0.34]
[1719973398972,11.61,152.3,152.27,0.34]
[1719973399171,11.61,152.3,152.25,16.0889]
[1719973399172,11.61,152.3,152.28,0.17]
[1719973399398,11.61,152.3,152.26,0.34]
[1719973401192,15.3801,152.33,152.26,0.34]
[1719973401500,6.563,152.37,152.28,11.61]
[1719973401800,6.563,152.37,152.29,0.34]
[1719973401801,11.61,152.33,152.29,0.34]
[1719973402307,23.28964202,152.38,152.29,11.95]
[1719973402500,11.61,152.35,152.3,11.61]
[1719973402797,11.61,152.35,152.31,0.34]
[1719973403007,11.61,152.34,152.31,0.34]